Cogmind - Beta 14 @@@ ROGUE MODE // 2024.11.23 @ 19:03:11 Player: skye Result: Destroyed by D-53 Grenadier with Mini Grenade Launcher Performance ------------- Evolutions (0) 0 Regions Visited (2) 400 Robots Destroyed (26) 130 Value Destroyed (460) 460 Prototype IDs (0) 0 Alien Tech Used (0) 0 Bonus (0) 0 TOTAL SCORE: 990 Bonus ------- None Cogmind --------- Core Integrity 0/250 Matter 295/300 Energy 100/100 System Corruption 0% Temperature Cool (0) Movement Rolling (115) Ox1 Location -10/Mines Parts ------- > --- POWER (1) -------- (None) > --- PROPULSION (2) --- Light Treads Compact Wheel > --- UTILITY (2) ------ Large Storage Unit > --- WEAPON (2) ------- Light Assault Rifle Light Assault Rifle > --- INVENTORY (15) --- Light Ion Engine Light Ion Engine Light Nuclear Core Heat Sink Improved Heat Sink Small Storage Unit Medium Matter Pod (100) Signal Interpreter Improved Terrain Scanner Hacking Suite EM Pulse Gun EM Pulse Gun Small Laser Peak State ------------ > --- POWER ------------ Ion Engine > --- PROPULSION ------- Light Treads Light Treads > --- UTILITY ---------- Large Storage Unit > --- WEAPON ----------- Light Assault Rifle Light Assault Rifle > --- INVENTORY -------- Light Ion Engine Light Nuclear Core Aluminum Leg Improved Heat Sink Small Storage Unit Medium Matter Pod Signal Interpreter Improved Terrain Scanner Hacking Suite EM Pulse Gun EM Pulse Gun Small Laser [Rating: 8] Favorites ----------- Power Ion Engine Engine Ion Engine Propulsion Light Treads Treads Light Treads Leg Aluminum Leg Wheel Wheel Utility Large Storage Unit Storage Large Storage Unit Weapon Light Assault Rifle Energy Gun EM Pulse Gun Ballistic Gun Light Assault Rifle Build | -11 -10 -10 ------- Run | Yrd Mat Min Slots Evolved . | . . . Power . | . . . Propulsion . | . . . Utility . | . . . Weapon . | . . . Parts Attached 15 | 2 11 2 Power 2 | . 1 1 Engine 2 | . 1 1 Core . | . . . Reactor . | . . . Propulsion 7 | 2 4 1 Treads 5 | 2 3 . Leg . | . . . Wheel 2 | . 1 1 Hover . | . . . Flight . | . . . Utility 1 | . 1 . Device . | . . . Storage 1 | . 1 . Processor . | . . . Hackware . | . . . Protection . | . . . Artifact . | . . . Weapon 5 | . 5 . Energy Gun 3 | . 3 . Energy Cannon . | . . . Ballistic Gun 2 | . 2 . Ballistic Cannon . | . . . Launcher . | . . . Special Weapon . | . . . Impact Weapon . | . . . Slashing Weapon . | . . . Piercing Weapon . | . . . Special Melee Weapon . | . . . Unidentified Prototypes . | . . . Parts Lost 8 | . 6 2 Power 2 | . 1 1 Propulsion 3 | . 2 1 Utility . | . . . Weapon 3 | . 3 . Highest Loss Streak 3 | . 3 1 To Critical Strikes . | . . . Average Slot Usage (%) 81 | . 80 85 Engine 13 | . 13 14 Treads 25 | . 25 25 Wheel 1 | . . 2 Storage 14 | . 14 14 Energy Gun 8 | . 10 . Ballistic Gun 18 | . 15 28 Peak Build Rating 8 | 6 7 8 Average Rating 6 | 5 6 7 On Entrance 6 | 6 6 7 Naked Turns . | . . . Heaviest Build 29 | 13 29 27 Greatest Support 40 | 40 40 40 Greatest Overweight (x) 9 | 4 9 1 Average Overweight (x) . | . . . Largest Inventory Capacity 15 | 8 15 15 Average Capacity 14 | 8 14 15 Most Carried 14 | 8 10 14 Average Carried 8 | 5 7 12 Final Capacity 15 | 8 15 15 Final Carried 13 | 4 10 13 Class Distribution -------------------- 100% | Mutant Dominant Class ---------------- Mutant | -10/Materials Mutant | -10/Mines Resources | -11 -10 -10 ----------- Run | Yrd Mat Min Matter Collected 507 | 220 125 162 Remotely . | . . . Salvage Created 816 | 118 474 224 Parts 54 | 4 41 9 Haulers Intercepted . | . . . Recyclers Shooed 1 | . . 1 Parts Field Recycled . | . . . Retrieved Matter . | . . . Parts Self-Destructed . | . . . Prevented . | . . . Kills | -11 -10 -10 ------- Run | Yrd Mat Min Combat Hostiles Destroyed 17 | . 12 5 Guns 17 | . 12 5 Classes Destroyed 7 | 2 5 . Worker 2 | . 2 . Tunneler 1 | 1 . . Recycler 2 | 1 . 1 Operator 2 | . 2 . Watcher 2 | . 2 . Swarmer 9 | . 6 3 Grunt 8 | . 6 2 Best Kill Streak 4 | 1 4 3 Combat Bots Only 4 | . 4 3 Max Kills in Single Turn 1 | 1 1 1 Gunslinging . | . . . Exploded . | . . . Melee . | . . . Uniques/NPCs Destroyed . | . . . Combat | -11 -10 -10 -------- Run | Yrd Mat Min Hostile Shots Fired 174 | . 118 56 Missed 52 | . 33 19 Damage Taken 1303 | . 850 453 Core 268 | . 190 78 Absorbed by Shields . | . . . Regen/Repaired (Parts) 105 | . 105 . Core Remaining (%) 100 | 100 . . Volleys Fired 98 | 7 68 23 Largest 2 | 2 2 2 Hottest 90 | 80 90 40 Shots Fired 178 | 14 118 46 Gun 178 | 14 118 46 Cannon . | . . . Launcher . | . . . Special . | . . . Kinetic 87 | . 41 46 Thermal 40 | 7 33 . Explosive . | . . . Electromagnetic 51 | 7 44 . Robot Hit Streak 10 | 3 6 10 Robot Miss Streak 5 | 3 5 5 Penetration Max . | . . . Secondary Targets 7 | . 6 1 Max Gunslinging Chain 1 | . 1 1 Shots Hit Robots 100 | 7 62 31 Core Hits 50 | 3 34 13 Critical Kills . | . . . Critical Parts Destroyed . | . . . Critical Strikes 2 | . 2 . Burn 2 | . 2 . Melee Attacks . | . . . Impact . | . . . Slashing . | . . . Piercing . | . . . Sneak Attacks . | . . . Combat Hostiles . | . . . Follow-up Attacks . | . . . Damage Inflicted 1106 | 81 782 243 Guns 1049 | 81 725 243 Cannons . | . . . Explosions 46 | . 46 . Melee . | . . . Ramming 11 | . 11 . Kinetic 443 | . 200 243 Thermal 293 | 41 252 . Explosive . | . . . Electromagnetic 359 | 40 319 . Impact . | . . . Slashing . | . . . Piercing . | . . . Highest Corruption . | . . . Average Corruption . | . . . Corruption Purged . | . . . Corruption Blocked . | . . . Overload Shots . | . . . Overflow Damage . | . . . Projectiles . | . . . Explosions . | . . . Melee . | . . . Knockbacks . | . . . Impact . | . . . Kinetic . | . . . Secondary . | . . . Self-Inflicted Damage . | . . . Shots . | . . . Rammed 2 | . 2 . Targets Rammed 2 | . 2 . Kicked . | . . . Crushed . | . . . Highest Temperature 467 | 90 467 54 Average Temperature 92 | 40 110 29 Received Heat Transfer 468 | . 312 156 Effects 7 | . 7 . Shutdowns 2 | . 2 . Energy Bleed 2 | . 2 . Interference 1 | . 1 . Short Circuit 1 | . 1 . Damage (minor) 1 | . 1 . Siege Activations . | . . . Robots Corrupted . | . . . Combat Hostiles . | . . . Parts Fried 1 | . 1 . Impact Corruptions . | . . . Robots Melted . | . . . Combat Hostiles . | . . . Parts Melted 1 | . 1 . Heat Transferred 867 | 100 767 . Parts Sabotaged . | . . . Parts Stolen . | . . . Parts Stripped . | . . . Power Chain Reactions 1 | . 1 . Alert | -11 -10 -10 ------- Run | Yrd Mat Min Peak Influence 272 | 10 272 143 Initial 13 | . 6 13 Average 68 | 6 65 100 Maximum Alert Level 1 | . 1 . Low Security (%) 96 | 100 95 100 Level 1 3 | . 4 . Level 2 . | . . . Level 3 . | . . . Level 4 . | . . . Level 5 . | . . . High Security . | . . . Max Security . | . . . Squads Dispatched 4 | . 4 . Investigation 2 | . 2 . Extermination . | . . . Reinforcement 2 | . 2 . Assault . | . . . Garrison . | . . . Intercept . | . . . Searches Triggered . | . . . Construction Impeded . | . . . Haulers Reinforced . | . . . Active Scanning Responses . | . . . Cargo Convoy Interrupts . | . . . Stealth | -11 -10 -10 --------- Run | Yrd Mat Min Distress Signals 2 | . 2 . Communications Jammed . | . . . Distress Signals . | . . . Times Spotted 44 | . 24 20 Peak Tracking Total 12 | . 4 12 Tactical Retreats 4 | . 2 2 Traps | -11 -10 -10 ------- Run | Yrd Mat Min Traps Triggered 2 | . 2 . Indirectly . | . . . Trap Hack Attempts . | . . . Triggered . | . . . Disarmed . | . . . Reprogrammed . | . . . Reused . | . . . Traps Extracted . | . . . Installed . | . . . Triggered . | . . . Machines | -11 -10 -10 ---------- Run | Yrd Mat Min Machines Disabled . | . . . Max in Single Turn . | . . . Machines Repaired . | . . . Machines Dismantled . | . . . Machines Sabotaged . | . . . Overloaded Fab Kills . | . . . Hacking | -11 -10 -10 --------- Run | Yrd Mat Min Machines Accessed 5 | . 5 . Terminals 2 | . 2 . Fabricators . | . . . Repair Stations 1 | . 1 . Recycling Units 2 | . 2 . Scanalyzers . | . . . Garrison Access . | . . . Total Hacks 10 | . 10 . Successful 5 | . 5 . Failed 5 | . 5 . Catastrophic . | . . . Database Lockouts . | . . . Manual 7 | . 7 . Terminals 4 | . 4 . Fabricators . | . . . Repair Stations 2 | . 2 . Recycling Units 4 | . 4 . Scanalyzers . | . . . Garrison Access . | . . . Terminal Hacks . | . . . Fabricator Hacks . | . . . Repair Station Hacks 2 | . 2 . Scan Component 1 | . 1 . Repair 1 | . 1 . Recycling Unit Hacks 1 | . 1 . Report Inventory 1 | . 1 . Scanalyzer . | . . . Garrison Access Hacks . | . . . Unauthorized Hacks 2 | . 2 . Terminals . | . . . Fabricators . | . . . Repair Stations . | . . . Recycling Units 2 | . 2 . Reject 2 | . 2 . Scanalyzers . | . . . Garrison Access . | . . . Data Cores Recovered . | . . . Used . | . . . Hacking Detections 3 | . 3 . Full Trace Events . | . . . Feedback Events . | . . . Feedback Blocked . | . . . Robot Schematics Acquired . | . . . Robots Built . | . . . Authchips . | . . . Time . | . . . Total Robot Build Rating . | . . . Part Schematics Acquired . | . . . Parts Built . | . . . Authchips . | . . . Time . | . . . Total Part Build Rating . | . . . Parts Repaired 1 | . 1 . Time 26 | . 26 . Parts Recycled . | . . . Recycled Matter . | . . . Retrieved Matter . | . . . Retrieved Components . | . . . Parts Scanalyzed . | . . . Part Schematics Acquired . | . . . Parts Damaged . | . . . Bothacking | -11 -10 -10 ------------ Run | Yrd Mat Min Used RIF Installer . | . . . Robots Hacked . | . . . Non-combat . | . . . Combat . | . . . Robot Hacks Applied . | . . . Relay Couplers Released . | . . . Fabnet Peak Effective % . | . . . Robots Rewired . | . . . Allies Hacked . | . . . Hacks Repelled . | . . . Allies | -11 -10 -10 -------- Run | Yrd Mat Min Total Allies . | . . . Largest Group . | . . . Highest-Rated Group . | . . . Highest-Rated Ally . | . . . Total Orders . | . . . Ally Attacks . | . . . Total Damage . | . . . Kills . | . . . Allies Corrupted . | . . . Allies Melted . | . . . Intel | -11 -10 -10 ------- Run | Yrd Mat Min Robot Analysis Total . | . . . Derelict Logs Recovered . | . . . Drone Launches . | . . . Drone Recoveries . | . . . Exploration | -11 -10 -10 ------------- Run | Yrd Mat Min Turns Passed 1490 | 97 1131 262 Spaces Moved 707 | 40 535 132 Core 11 | 1 10 . Treads 654 | 39 524 91 Legs . | . . . Wheels 42 | . 1 41 Hover . | . . . Flight . | . . . Fastest Speed 110 | 160 110 115 Average Speed 162 | 162 166 146 Slowest Speed 500 | 250 500 160 Overloaded Moves . | . . . Propulsion Burnouts . | . . . Robots Hopped . | . . . Cave-ins Triggered . | . . . Exploration Rate (%) 37 | 5 71 35 Regions Visited 2 Branch Regions 1 Pre-discovered Areas . | . . . Known Exits Taken . | . . . Unknown Exits Taken 2 | 1 1 . Scrap Searched 1 | . . 1 Spaces Dug . | . . . Terrain Destroyed 6 | . 6 . Melee . | . . . Projectile . | . . . AOE 6 | . 6 . Terrain Rammed . | . . . Walls Destroyed . | . . . Machines Disabled . | . . . Actions | -11 -10 -10 --------- Run | Yrd Mat Min Total 889 | 61 662 166 Wait 41 | 5 36 . Move 705 | 39 534 132 Hop . | . . . Pick Up 17 | 2 9 6 Fast Attach 4 | . 4 . Attach 7 | 2 4 1 Detach 3 | 2 1 . Swap 4 | . 3 1 Drop 8 | 4 1 3 Fire 98 | 7 68 23 Melee . | . . . Ram . | . . . Kick . | . . . Crush 2 | . 2 . Escape Stasis . | . . . Rewire . | . . . Trap . | . . . Miscellaneous . | . . . Route ------- -11/Scrapyard -10/Materials (discovered 2 exits: [*Mat] / [*Min]) -10/Mines History --------- Turn | Location | Event 2 | -11/Scrapyard | Discovered new exit (range 2) 98 | -11/Scrapyard | Entered Materials 344 | -10/Materials | Build established: Mutant 471 | -10/Materials | Core integrity fell below 50% 524 | -10/Materials | Lost 3 parts (1n2w) 572 | -10/Materials | Lost 3 parts (1p1n1w) 607 | -10/Materials | Discovered new exit (range 12) 685 | -10/Materials | Discovered new exit (range 16) 1026 | -10/Materials | Repaired Lgt. Treads 1229 | -10/Materials | Entered Mines 1236 | -10/Mines | Core integrity fell below 20% 1242 | -10/Mines | Met a Derelict bent on vengeance 1426 | -10/Mines | Assembled infested the area 1431 | -10/Mines | Assisted by a Guerilla fighting off Assembled 1491 | -10/Mines | Destroyed by D-53 Grenadier with Mini Grenade Launcher Last Messages --------------- 01431_ A derelict emerges from the shadows: "You need to get out of here! I've been tracking a group of Assembled to figure out where they're coming from, and they're closing on this area, come on!" 01440_ VU-TR1(h): "I'll hold them off! Go on ahead or try to find another way!" 01442_ as-32351 destroyed. 01443_ Lgt. Treads destroyed. 01444_ R-06 Scavenger destroyed. 01446_ HV Slug penetrates as-05048. 01446_ as-05048 suffers critical hit (Destroy). 01446_ as-05048 destroyed. 01450_ VU-TR1(h) knocked back. 01451_ as-43724 suffers critical hit (Destroy). 01451_ as-43724 destroyed. 01491_ C-30 ARC bursts open, deploying its payload. 01491_ D-53 Grenadier unfolds itself. 01491_ Lgt. Ion Engine destroyed. Map ----- +----------------------------------------------------+ | ???????????????????????????? | | ???????????????????????????? | | ???????????????????????????? | | ???????????????????????????? | | ???????????????????????????? | | ???????????????????????????? | | ???????????????????????????? | | ???????????????????????????? | | ???????????????????????????? | | ???????????????????????????? | | ???????????????????????????? | | ???????????????????????????? | | ???????????????????????????? | | ???????????????????????????? | | ????????#??????????????????? | | ??????? ##?????????????????? | | ??????? ##????????????????? | | ?????? ?????????????????? | | ?????? ??????????????????? | | ?????# ???????????????????? | | ??### d ???????????????????? | | ?## d%????????????????????? | | ?# ?????????????????????? | | ?# #?????????????????????? | | ?# ##????????????????????? | | ?# @ ###??????????????????? | | ?## ##?????????????????? | | ??##a ##????????????????? | | ???## #????????????????? | | ????# #????????????????? | | ????# #????????????????? | | ????## ##????????????????? | | ?????# ###?????????????????? | | ?????# #?????????###???????? | | ?????# ####! ! ! #?????? | | ?????# *%= %|=%= #?????? | | ?????# ###!! =#??????????? | | ?????# #????? #??????????? | | ?????# #???? ???????????? | | ?????# #???? % ##?????????? | | ?????# #????? =##????????? | | ?????# #????? !%##???????? | | ?????# #??????# ==%###?????? | | ?????# #???????# ##????? | | ?????# #???????# % #????# | | ?????# #??????## #???## | | ?????# #?###### ##?## | | ?????# #?# ### | | ?????# #?# | | ?????# #?# ## | +----------------------------------------------------+ Best States ------------- Heat Dissipation 25 Energy Generation 10 Energy Capacity 250 Matter Stores 300 Matter Capacity 300 Sight Range 16 Terrain Scan Density 10 Evasion (%) 40 Recoil Reduction 2 Item Schematics ----------------- None Robot Schematics ------------------ None Fabricated ------------ Nothing Alien Tech Used ----------------- None Achievements -------------- None Challenges ------------ None Game ------ Seed PowerFissionArchive Manual? 0 Play Time 00:11:22 Cumulative 57.2 hours Start 2024.11.23 @ 18:52:53 End 2024.11.23 @ 19:03:11 Sessions 1 Manual Loads 0 Difficulty Rogue Special Mode None Game No. 77 Rogue 33 Adventurer 44 Explorer 0 Win Type - Total 0 Types 0/0/0/0/0/0/0/0/0 Lore% 18 Gallery% 44 Achievement% 32 Wizard Run 0 Options --------- Layout 1 ASCII 0 Keyboard 1 Movement Vi Keybinds 0 Fullscreen 1 Font 24/Terminus Map View 50x40 Zoom Use 0% Tactical HUD 1 Map Filters NONE Filters NONE Steam 1 RUN: 12f15dd2-9139-4267-a8b1-a56db36f02d2